Cogmind - Beta 13 @@@ ROGUE MODE // 2024.04.11 @ 06:45:53 Player: A Moose Result: Destroyed by G-47 Trooper with Particle Gun Performance ------------- Evolutions (0) 0 Regions Visited (2) 400 Robots Destroyed (20) 100 Value Destroyed (432) 432 Prototype IDs (0) 0 Alien Tech Used (0) 0 Bonus (0) 0 TOTAL SCORE: 932 Bonus ------- None Cogmind --------- Core Integrity 0/250 Matter 203/300 Energy 264/265 System Corruption 0% Temperature Danger (486) Movement Core (400) Ox7 Location -10/Mines Parts ------- > --- POWER (1) -------- Improved Ion Engine > --- PROPULSION (2) --- (None) > --- UTILITY (2) ------ Medium Storage Unit > --- WEAPON (2) ------- Particle Gun Assault Rifle > --- INVENTORY (10) --- Improved Ion Engine Improved Ion Engine Improved Ion Engine Light Nuclear Core Improved Hover Unit Improved Hover Unit Improved Hover Unit Sensor Array Makeshift Shrapnel Gun Datajack Peak State ------------ > --- POWER ------------ Improved Ion Engine > --- PROPULSION ------- Light Treads Light Treads > --- UTILITY ---------- Medium Storage Unit Hacking Suite > --- WEAPON ----------- Particle Gun Assault Rifle > --- INVENTORY -------- Improved Ion Engine Improved Ion Engine Improved Ion Engine Light Nuclear Core Wheel Improved Hover Unit Improved Hover Unit Improved Hover Unit Improved Heat Sink Sensor Array [Rating: 13] Favorites ----------- Power Improved Ion Engine Engine Improved Ion Engine Propulsion Light Treads Treads Light Treads Utility Medium Storage Unit Device Improved Heat Sink Storage Medium Storage Unit Hackware Hacking Suite Protection Light Armor Plating Weapon Assault Rifle Energy Gun Particle Gun Ballistic Gun Assault Rifle Build | -11 -10 -10 ------- Run | Yrd Mat Min Slots Evolved . | . . . Power . | . . . Propulsion . | . . . Utility . | . . . Weapon . | . . . Parts Attached 20 | 6 13 1 Power 4 | 1 2 1 Engine 4 | 1 2 1 Core . | . . . Reactor . | . . . Propulsion 3 | 2 1 . Treads 3 | 2 1 . Leg . | . . . Wheel . | . . . Hover . | . . . Flight . | . . . Utility 6 | 1 5 . Device 2 | . 2 . Storage 2 | 1 1 . Processor . | . . . Hackware 1 | . 1 . Protection 1 | . 1 . Artifact . | . . . Weapon 7 | 2 5 . Energy Gun 2 | 1 1 . Energy Cannon . | . . . Ballistic Gun 5 | 1 4 . Ballistic Cannon . | . . . Launcher . | . . . Special Weapon . | . . . Impact Weapon . | . . . Slashing Weapon . | . . . Piercing Weapon . | . . . Special Melee Weapon . | . . . Unidentified Prototypes . | . . . Parts Lost 7 | . 4 3 Power . | . . . Propulsion 3 | . 1 2 Utility 2 | . 1 1 Weapon 2 | . 2 . Highest Loss Streak 3 | . 2 3 To Critical Strikes . | . . . Average Slot Usage (%) 95 | . 95 94 Engine 14 | . 14 14 Treads 27 | . 27 24 Device 1 | . 1 . Storage 14 | . 14 14 Hackware 7 | . 7 12 Protection 3 | . 4 . Energy Gun 5 | . 4 14 Ballistic Gun 19 | . 20 14 Naked Turns . | . . . Heaviest Build 22 | 14 22 22 Greatest Support 40 | 40 40 40 Greatest Overweight (x) 3 | 3 . . Average Overweight (x) . | . . . Largest Inventory Capacity 10 | 8 10 10 Average Capacity 9 | 7 9 10 Most Carried 10 | 4 10 10 Average Carried 8 | 2 8 10 Final Capacity 10 | 8 10 10 Final Carried 10 | 3 10 10 Class Distribution -------------------- 100% | Mutant Dominant Class ---------------- Mutant | -10/Materials Mutant | -10/Mines Resources | -11 -10 -10 ----------- Run | Yrd Mat Min Matter Collected 745 | 254 491 . Remotely . | . . . Salvage Created 676 | . 569 107 Parts 33 | . 22 11 Haulers Intercepted 1 | . 1 . Recyclers Shooed 1 | . 1 . Parts Field Recycled . | . . . Retrieved Matter . | . . . Parts Self-Destructed . | . . . Prevented . | . . . Kills | -11 -10 -10 ------- Run | Yrd Mat Min Combat Hostiles Destroyed 9 | . 8 1 Melee 1 | . 1 . Guns 8 | . 7 1 Classes Destroyed 6 | . 6 . Worker 5 | . 1 4 Hauler 1 | . 1 . Recycler 2 | . 2 . Operator 1 | . 1 . Watcher 2 | . 2 . Grunt 9 | . 8 1 Best Kill Streak 5 | . 4 5 Combat Bots Only 3 | . 3 1 Max Kills in Single Turn 2 | . 1 2 Gunslinging . | . . . Exploded . | . . . Melee 1 | . 1 . Uniques/NPCs Destroyed . | . . . Combat | -11 -10 -10 -------- Run | Yrd Mat Min Hostile Shots Fired 147 | . 112 35 Missed 47 | . 37 10 Damage Taken 1339 | . 975 364 Core 252 | . 152 100 Absorbed by Shields . | . . . Core Remaining (%) 100 | 100 . . Volleys Fired 113 | . 94 19 Largest 2 | . 2 2 Hottest 85 | . 85 85 Shots Fired 197 | . 163 34 Gun 197 | . 163 34 Cannon . | . . . Launcher . | . . . Special . | . . . Kinetic 152 | . 133 19 Thermal 45 | . 30 15 Explosive . | . . . Electromagnetic . | . . . Robot Hit Streak 9 | . 9 8 Robot Miss Streak 5 | . 5 4 Penetration Max . | . . . Secondary Targets 1 | . . 1 Max Gunslinging Chain 1 | . . 1 Shots Hit Robots 109 | . 91 18 Core Hits 35 | . 27 8 Critical Kills . | . . . Critical Parts Destroyed 1 | . 1 . Critical Strikes 2 | . 2 . Burn 1 | . 1 . Destroy 1 | . 1 . Melee Attacks . | . . . Impact . | . . . Slashing . | . . . Piercing . | . . . Sneak Attacks . | . . . Combat Hostiles . | . . . Follow-up Attacks . | . . . Damage Inflicted 1536 | . 1215 321 Guns 1531 | . 1210 321 Cannons . | . . . Explosions . | . . . Melee . | . . . Ramming 5 | . 5 . Kinetic 1088 | . 926 162 Thermal 443 | . 284 159 Explosive . | . . . Electromagnetic . | . . . Impact . | . . . Slashing . | . . . Piercing . | . . . Highest Corruption . | . . . Average Corruption . | . . . Corruption Purged . | . . . Corruption Blocked . | . . . Overload Shots . | . . . Overflow Damage . | . . . Projectiles . | . . . Explosions . | . . . Melee . | . . . Knockbacks . | . . . Impact . | . . . Kinetic . | . . . Secondary . | . . . Self-Inflicted Damage . | . . . Shots . | . . . Rammed 1 | . 1 . Targets Rammed 2 | . 2 . Kicked . | . . . Crushed 1 | . 1 . Highest Temperature 516 | . 153 516 Average Temperature 106 | . 53 314 Received Heat Transfer 765 | . 558 207 Effects 5 | . . 5 Shutdowns 2 | . . 2 Matter Decay 1 | . . 1 Short Circuit 2 | . . 2 Siege Activations . | . . . Robots Corrupted . | . . . Combat Hostiles . | . . . Parts Fried . | . . . Impact Corruptions . | . . . Robots Melted . | . . . Combat Hostiles . | . . . Parts Melted . | . . . Heat Transferred 1147 | . 777 370 Parts Sabotaged . | . . . Parts Stolen . | . . . Parts Stripped . | . . . Power Chain Reactions . | . . . Alert | -11 -10 -10 ------- Run | Yrd Mat Min Peak Influence 146 | . 146 30 Initial 5 | . . 5 Average 36 | . 43 7 Maximum Alert Level . | . . . Low Security (%) 100 | 100 100 100 Level 1 . | . . . Level 2 . | . . . Level 3 . | . . . Level 4 . | . . . Level 5 . | . . . High Security . | . . . Max Security . | . . . Squads Dispatched 2 | . 2 . Investigation . | . . . Extermination . | . . . Reinforcement 2 | . 2 . Assault . | . . . Garrison . | . . . Intercept . | . . . Searches Triggered . | . . . Construction Impeded . | . . . Haulers Reinforced . | . . . Active Scanning Responses . | . . . Cargo Convoy Interrupts . | . . . Stealth | -11 -10 -10 --------- Run | Yrd Mat Min Distress Signals 1 | . 1 . Communications Jammed . | . . . Distress Signals . | . . . Times Spotted 21 | . 19 2 Peak Tracking Total 5 | . 5 2 Tactical Retreats . | . . . Traps | -11 -10 -10 ------- Run | Yrd Mat Min Traps Triggered 1 | . 1 . Indirectly . | . . . Trap Hack Attempts . | . . . Triggered . | . . . Disarmed . | . . . Reprogrammed . | . . . Reused . | . . . Traps Extracted . | . . . Installed . | . . . Triggered . | . . . Machines | -11 -10 -10 ---------- Run | Yrd Mat Min Machines Disabled 2 | . 2 . Max in Single Turn 1 | . 1 . Machines Repaired . | . . . Machines Dismantled . | . . . Machines Sabotaged . | . . . Overloaded Fab Kills . | . . . Hacking | -11 -10 -10 --------- Run | Yrd Mat Min Machines Accessed 3 | . 3 . Terminals 3 | . 3 . Fabricators . | . . . Repair Stations . | . . . Recycling Units . | . . . Scanalyzers . | . . . Garrison Access . | . . . Total Hacks 9 | . 9 . Successful 3 | . 3 . Failed 6 | . 6 . Catastrophic 1 | . 1 . Database Lockouts . | . . . Manual 4 | . 4 . Terminals 9 | . 9 . Fabricators . | . . . Repair Stations . | . . . Recycling Units . | . . . Scanalyzers . | . . . Garrison Access . | . . . Terminal Hacks 2 | . 2 . Locate Traps 1 | . 1 . Zone Layout 1 | . 1 . Fabricator Hacks . | . . . Repair Station Hacks . | . . . Recycling Unit Hacks . | . . . Scanalyzer . | . . . Garrison Access Hacks . | . . . Unauthorized Hacks 1 | . 1 . Terminals 1 | . 1 . Assimilate 1 | . 1 . Fabricators . | . . . Repair Stations . | . . . Recycling Units . | . . . Scanalyzers . | . . . Garrison Access . | . . . Data Cores Recovered . | . . . Used . | . . . Hacking Detections 2 | . 2 . Full Trace Events 2 | . 2 . Feedback Events . | . . . Feedback Blocked . | . . . Robot Schematics Acquired . | . . . Robots Built . | . . . Authchips . | . . . Time . | . . . Total Robot Build Rating . | . . . Part Schematics Acquired . | . . . Parts Built . | . . . Authchips . | . . . Time . | . . . Total Part Build Rating . | . . . Parts Repaired . | . . . Time . | . . . Parts Recycled . | . . . Recycled Matter . | . . . Retrieved Matter . | . . . Retrieved Components . | . . . Parts Scanalyzed . | . . . Part Schematics Acquired . | . . . Parts Damaged . | . . . Bothacking | -11 -10 -10 ------------ Run | Yrd Mat Min Used RIF Installer . | . . . Robots Hacked . | . . . Non-combat . | . . . Combat . | . . . Robot Hacks Applied . | . . . Relay Couplers Released . | . . . Fabnet Peak Effective % . | . . . Robots Rewired . | . . . Allies Hacked . | . . . Hacks Repelled . | . . . Allies | -11 -10 -10 -------- Run | Yrd Mat Min Total Allies . | . . . Largest Group . | . . . Highest-Rated Group . | . . . Highest-Rated Ally . | . . . Total Orders . | . . . Ally Attacks . | . . . Total Damage . | . . . Kills . | . . . Allies Corrupted . | . . . Allies Melted . | . . . Intel | -11 -10 -10 ------- Run | Yrd Mat Min Robot Analysis Total . | . . . Derelict Logs Recovered . | . . . Drone Launches . | . . . Drone Recoveries . | . . . Exploration | -11 -10 -10 ------------- Run | Yrd Mat Min Turns Passed 1798 | 79 1486 233 Spaces Moved 877 | 43 723 111 Core 17 | 17 . . Treads 860 | 26 723 111 Legs . | . . . Wheels . | . . . Hover . | . . . Flight . | . . . Fastest Speed 50 | 50 160 160 Average Speed 159 | 151 160 160 Slowest Speed 200 | 200 160 160 Overloaded Moves . | . . . Propulsion Burnouts . | . . . Robots Hopped . | . . . Cave-ins Triggered . | . . . Exploration Rate (%) 42 | 4 97 25 Regions Visited 2 Branch Regions 1 Pre-discovered Areas . | . . . Known Exits Taken . | . . . Unknown Exits Taken 2 | 1 1 . Scrap Searched . | . . . Spaces Dug . | . . . Terrain Destroyed . | . . . Melee . | . . . Projectile . | . . . AOE . | . . . Terrain Rammed . | . . . Walls Destroyed . | . . . Machines Disabled . | . . . Actions | -11 -10 -10 --------- Run | Yrd Mat Min Total 1081 | 57 890 134 Wait 34 | . 33 1 Move 875 | 42 722 111 Hop . | . . . Pick Up 27 | 9 17 1 Fast Attach 3 | . 3 . Attach 9 | 6 3 . Detach . | . . . Swap 8 | . 7 1 Drop 10 | . 9 1 Fire 113 | . 94 19 Melee . | . . . Ram . | . . . Kick . | . . . Crush 2 | . 2 . Escape Stasis . | . . . Rewire . | . . . Trap . | . . . Miscellaneous . | . . . Route ------- -11/Scrapyard -10/Materials (discovered 4 exits: [*Mat x3] / [*Min]) -10/Mines History --------- Turn | Location | Event 26 | -11/Scrapyard | Discovered new exit (range 15) 80 | -11/Scrapyard | Entered Materials 324 | -10/Materials | Build established: Mutant 326 | -10/Materials | Discovered new exit (range 4) 757 | -10/Materials | Discovered new exit (range 7) 896 | -10/Materials | Core integrity fell below 50% 904 | -10/Materials | Discovered new exit (range 5) 1243 | -10/Materials | Discovered new exit (range 16) 1566 | -10/Materials | Entered Mines 1671 | -10/Mines | A weapon hastily lodged in a ceiling crevice suddenly fell to the ground 1776 | -10/Mines | Core integrity fell below 20% 1799 | -10/Mines | Destroyed by G-47 Trooper with Particle Gun Last Messages --------------- R-06 Scavenger collects Aluminum Leg. K-01 Serf collects debris. R-06 Scavenger collects Aluminum Leg. K-01 Serf collects debris. K-01 Serf destroyed. R-06 Scavenger collects Wheel. K-01 Serf collects debris. Power failure, Imp. Ion Engine shutdown. K-01 Serf collects debris. Lgt. Treads broken. Overheating: Short circuit. K-01 Serf collects debris. K-01 Serf destroyed. Broken Lgt. Treads destroyed. Overheating: Matter decay (-24). K-01 Serf collects debris. Power failure, Imp. Ion Engine shutdown. K-01 Serf destroyed. Particle Gun broken. Overheating: Short circuit. Map ----- +----------------------------------------------------+ | | | | | | | | | ?????????????????????????????????????????????????? | | ?????????????????????????????????????????????????? | | ?????????????????????????????????????????????????? | | ?????????????????????????????????????????????????? | | ?????????????????????????????????????????????????? | | ?????????????????????????????????????????????????? | | ?????????????????????????????????????????????????? | | ?????????????????????????????????????????????????? | | ?????????????????????????###?????????????????????? | | ????????????????????????? #??????##?????????????? | | ????????????????????????? #????# #????????????? | | ????????????????????????? #???# ?????????????? | | ????????????????????????# #### ???????????????? | | ???????????????????????## $# ????????????????? | | ??????????????????????## ?????????????????? | | ??????????????????????? ???????????????????? | | ??????????????????????? ????????????????????? | | ???????????????????????#*! ?????????????????????? | | ???????????????????????#g%#??????????????????????? | | ???????????????????????#*%#??????????????????????? | | ??????????????????????##%%##?????????????????????? | | ??????????????????????#==@!##????????????????????? | | ??????????????????????# ####?????????????????? | | ??????????????????????# ##????????????????? | | ??????????????????????# #????????????????? | | ??????????????????????## #????????????????? | | ???????????????????????# ##????????????????? | | ???????????????????????# #?????????????????? | | ???????????????????????# #????????????????#? | | ???????????????????????## #??????????????? #? | | ????????????????????????##### #??????????????# #? | | ??????????????????????####??## ##????????????# ## | | ????????????????????### ##?## ############# # | | ??????????????????### ### | | ?????????????????## | | ?????????????????# ###### ##### | | ?????????????????# ##????# #???# | | ?????????????????## ##?????# #???## | | ??????????????????###### ##??????# #????? | | ???????????????????????## ########## #?????# # | | ????????????????????????#####?# #??????#### | | ?????????????????#######??????# ########?????????? | | ????????????????## ##?????# #?????##?????????? | | ???????????????## #?????# ###?## ##????????? | | ??????????????## ##??### ### #????????? | | ??????????????# #### #????????? | +----------------------------------------------------+ Best States ------------- Heat Dissipation 39 Energy Generation 12 Energy Capacity 265 Matter Stores 300 Matter Capacity 300 Sight Range 16 Robot Scan Range 14 Terrain Scan Density 10 Armor Coverage 150 Evasion (%) 40 Recoil Reduction 2 Offensive Hacking 10 Item Schematics ----------------- None Robot Schematics ------------------ None Fabricated ------------ Nothing Alien Tech Used ----------------- None Achievements -------------- None Challenges ------------ None Game ------ Seed DynamicZioniteUnit Manual? 0 Play Time 00:12:13 Cumulative 25.7 hours Start 2024.04.11 @ 06:34:35 End 2024.04.11 @ 06:45:53 Sessions 1 Manual Loads 0 Difficulty Rogue Special Mode None Game No. 32 Rogue 23 Adventurer 9 Explorer 0 Win Type - Total 0 Types 0/0/0/0/0/0/0/0/0 Lore% 22 Gallery% 35 Achievement% 28 Wizard Run 0 Options --------- Layout 1 ASCII 0 Keyboard 0 Movement Numpad Keybinds 0 Fullscreen 1 Font 24/Smallcaps Map View 50x35 Zoom Use 0% Tactical HUD 0 Map Filters NONE Filters NONE Steam 1 RUN: 4197b3aa-9ec9-43d5-bf16-cb99dad8161f